[Event "*** Titled Tuesday Blitz"]
[Site "Chess.com"]
[Date "2018.06.05"]
[Round "6"]
[White "Zufi1811"]
[Black "GMSrinath"]
[Result "0-1"]
[WhiteElo "2465"]
[BlackElo "2674"]
[TimeControl "180+2"]
[EndTime "14:30:35 PDT"]
[Termination "GMSrinath won by resignation"]

1. e4 {[%clk 0:03:01.9]} 1... c5 {[%clk 0:02:58.6]} 2. Nf3 {[%clk 0:03:02.3]}
2... d6 {[%clk 0:02:51.7]} 3. d4 {[%clk 0:03:03.4]} 3... cxd4 {[%clk 0:02:53.6]}
4. Nxd4 {[%clk 0:03:04.5]} 4... Nf6 {[%clk 0:02:54.3]} 5. Nc3 {[%clk 0:03:05.8]}
5... Nc6 {[%clk 0:02:54.6]} 6. g3 {[%clk 0:03:05.8]} 6... e6 {[%clk 0:02:52.2]}
7. Bg2 {[%clk 0:03:05.4]} 7... Bd7 {[%clk 0:02:52.5]} 8. O-O {[%clk 0:03:00.6]}
8... Be7 {[%clk 0:02:54]} 9. h3 {[%clk 0:02:58.9]} 9... O-O {[%clk 0:02:55.3]}
10. g4 {[%clk 0:02:52.8]} 10... Rc8 {[%clk 0:02:48.9]} 11. Nde2 {[%clk 0:02:52]}
11... d5 {[%clk 0:02:31.2]} 12. exd5 {[%clk 0:02:45.2]} 12... Nxd5 {[%clk
0:02:29.1]} 13. Nxd5 {[%clk 0:02:36.1]} 13... exd5 {[%clk 0:02:31]} 14. Be3
{[%clk 0:02:29.8]} 14... Qa5 {[%clk 0:02:22]} 15. c3 {[%clk 0:02:25.3]} 15...
Rfd8 {[%clk 0:02:23.2]} 16. Qxd5 {[%clk 0:02:10.8]} 16... Qa6 {[%clk 0:02:23.3]}
17. Qf3 {[%clk 0:01:55]} 17... Ne5 {[%clk 0:02:05.4]} 18. Qe4 {[%clk 0:01:55.7]}
18... Bd6 {[%clk 0:01:27.7]} 19. Nd4 {[%clk 0:01:50.2]} 19... Re8 {[%clk
0:01:29.2]} 20. Qxb7 {[%clk 0:01:49.2]} 20... Qxb7 {[%clk 0:01:28.6]} 21. Bxb7
{[%clk 0:01:51.1]} 21... Rb8 {[%clk 0:01:30.5]} 22. Bd5 {[%clk 0:01:47.4]} 22...
Rxb2 {[%clk 0:01:30]} 23. Rfb1 {[%clk 0:01:47.5]} 23... Ba3 {[%clk 0:01:26.6]}
24. Bc1 {[%clk 0:01:26.3]} 24... Rxb1 {[%clk 0:00:52.9]} 25. Rxb1 {[%clk
0:01:28.2]} 25... Bxc1 {[%clk 0:00:54.8]} 26. Rxc1 {[%clk 0:01:29.1]} 26... Nd3
{[%clk 0:00:56.7]} 27. Rb1 {[%clk 0:01:21.4]} 27... Nf4 {[%clk 0:00:57.4]} 28.
Rb7 {[%clk 0:01:03.2]} 28... Nxd5 {[%clk 0:00:55.7]} 29. Rxd7 {[%clk 0:01:03.1]}
29... Nxc3 {[%clk 0:00:57.6]} 30. Rxa7 {[%clk 0:01:03]} 30... h5 {[%clk
0:00:59.5]} 31. gxh5 {[%clk 0:00:57.8]} 31... Re5 {[%clk 0:00:55.2]} 32. a4
{[%clk 0:00:49.4]} 32... Rxh5 {[%clk 0:00:48.2]} 33. a5 {[%clk 0:00:40.9]} 33...
Rxh3 {[%clk 0:00:27.1]} 34. Rc7 {[%clk 0:00:40.6]} 34... Nd5 {[%clk 0:00:27.7]}
35. Rc5 {[%clk 0:00:31.5]} 35... Nb4 {[%clk 0:00:15.1]} 36. Rc4 {[%clk
0:00:32.4]} 36... Na6 {[%clk 0:00:15.9]} 37. Rc6 {[%clk 0:00:33.2]} 37... Nb4
{[%clk 0:00:17.5]} 38. Rb6 {[%clk 0:00:33.4]} 38... Nd5 {[%clk 0:00:19.1]} 39.
Rb8+ {[%clk 0:00:33.7]} 39... Kh7 {[%clk 0:00:20.6]} 40. Nb3 {[%clk 0:00:31.6]}
40... Rh4 {[%clk 0:00:15.5]} 41. Nc5 {[%clk 0:00:31.2]} 41... Rc4 {[%clk
0:00:16.2]} 42. Nd7 {[%clk 0:00:18.6]} 42... Ra4 {[%clk 0:00:13.3]} 43. Rb5
{[%clk 0:00:19.9]} 43... Nf4 {[%clk 0:00:14.5]} 44. Nc5 {[%clk 0:00:19.3]} 44...
Ra1+ {[%clk 0:00:14.8]} 45. Kh2 {[%clk 0:00:20.3]} 45... Ra2 {[%clk 0:00:16.7]}
46. Kg3 {[%clk 0:00:21.1]} 46... Ne2+ {[%clk 0:00:18.1]} 47. Kg4 {[%clk
0:00:21.6]} 47... f5+ {[%clk 0:00:17.4]} 48. Kg5 {[%clk 0:00:21.1]} 48... Nd4
{[%clk 0:00:13.2]} 49. Rb7 {[%clk 0:00:20.2]} 49... Rxa5 {[%clk 0:00:12.5]} 50.
Nd7 {[%clk 0:00:17.1]} 50... Ne6+ {[%clk 0:00:13.9]} 51. Kh4 {[%clk 0:00:17.2]}
51... Ra3 {[%clk 0:00:11.4]} 52. Ne5 {[%clk 0:00:14.5]} 52... Kh6 {[%clk
0:00:09.1]} 53. Nf7+ {[%clk 0:00:04.2]} 53... Kg6 {[%clk 0:00:10.6]} 54. Nh8+
{[%clk 0:00:02.7]} 54... Kf6 {[%clk 0:00:10.6]} 55. Rf7+ {[%clk 0:00:04]} 55...
Ke5 {[%clk 0:00:12.2]} 56. Ng6+ {[%clk 0:00:04.6]} 56... Ke4 {[%clk 0:00:12.7]}
57. Re7 {[%clk 0:00:05.3]} 57... Kd5 {[%clk 0:00:14.2]} 58. f4 {[%clk
0:00:03.8]} 58... Kd6 {[%clk 0:00:15.2]} 59. Rf7 {[%clk 0:00:04]} 59... Ra1
{[%clk 0:00:16.6]} 60. Rxf5 {[%clk 0:00:04.4]} 60... Rh1+ {[%clk 0:00:17.7]} 61.
Kg4 {[%clk 0:00:05.5]} 61... Rg1+ {[%clk 0:00:19.3]} 62. Kh5 {[%clk 0:00:07]}
62... Rh1+ {[%clk 0:00:19.9]} 63. Kg4 {[%clk 0:00:08.1]} 63... Kd7 {[%clk
0:00:20.5]} 64. Ne5+ {[%clk 0:00:08.4]} 64... Kd6 {[%clk 0:00:21.8]} 65. Rh5
{[%clk 0:00:08.9]} 65... Rg1+ {[%clk 0:00:22.9]} 66. Kf5 {[%clk 0:00:09]} 66...
g6+ {[%clk 0:00:20.9]} 67. Nxg6 {[%clk 0:00:09.3]} 67... Ng7+ {[%clk 0:00:22.8]}
68. Kf6 {[%clk 0:00:05.8]} 68... Nxh5+ {[%clk 0:00:24.7]} 69. Kf7 {[%clk
0:00:07.6]} 69... Nxf4 {[%clk 0:00:23.9]} 0-1

[Event "*** Titled Tuesday Blitz"]
[Site "Chess.com"]
[Date "2018.06.05"]
[Round "6"]
[White "PowerThinking2650"]
[Black "ChrisTool2"]
[Result "0-1"]
[WhiteElo "2330"]
[BlackElo "2250"]
[TimeControl "180+2"]
[EndTime "14:30:35 PDT"]
[Termination "ChrisTool2 won by resignation"]

1. e4 {[%clk 0:03:01.9]} 1... c5 {[%clk 0:03:00.2]} 2. Nf3 {[%clk 0:03:02.1]}
2... e6 {[%clk 0:03:01.4]} 3. Nc3 {[%clk 0:03:01.7]} 3... a6 {[%clk 0:03:00]} 4.
g3 {[%clk 0:03:02.6]} 4... Nc6 {[%clk 0:03:00.1]} 5. Bg2 {[%clk 0:03:03.3]} 5...
d6 {[%clk 0:03:00.4]} 6. O-O {[%clk 0:03:03.1]} 6... g6 {[%clk 0:02:59.5]} 7. d4
{[%clk 0:03:03.9]} 7... cxd4 {[%clk 0:02:59]} 8. Nxd4 {[%clk 0:03:05.8]} 8...
Bg7 {[%clk 0:02:59]} 9. Be3 {[%clk 0:03:06.5]} 9... Nge7 {[%clk 0:02:54.6]} 10.
Qd2 {[%clk 0:03:04.2]} 10... O-O {[%clk 0:02:40.8]} 11. Rad1 {[%clk 0:03:02.2]}
11... Ne5 {[%clk 0:02:40.4]} 12. b3 {[%clk 0:02:51.1]} 12... Qc7 {[%clk
0:02:33.4]} 13. h3 {[%clk 0:02:43.3]} 13... Rd8 {[%clk 0:02:22.7]} 14. f4 {[%clk
0:02:39.7]} 14... N5c6 {[%clk 0:02:23.1]} 15. Nce2 {[%clk 0:02:38.8]} 15... d5
{[%clk 0:02:16.8]} 16. e5 {[%clk 0:02:36.2]} 16... Bd7 {[%clk 0:02:09]} 17. g4
{[%clk 0:02:35.4]} 17... Rac8 {[%clk 0:01:57.4]} 18. Rc1 {[%clk 0:02:36.1]}
18... Nxd4 {[%clk 0:01:49.3]} 19. Nxd4 {[%clk 0:02:34.2]} 19... Qc3 {[%clk
0:01:39.9]} 20. Qxc3 {[%clk 0:02:30.2]} 20... Rxc3 {[%clk 0:01:41.8]} 21. Bd2
{[%clk 0:02:31.5]} 21... Rc7 {[%clk 0:01:40]} 22. c3 {[%clk 0:02:30.3]} 22...
Rdc8 {[%clk 0:01:26.7]} 23. Rce1 {[%clk 0:02:28.3]} 23... g5 {[%clk 0:00:51.1]}
24. f5 {[%clk 0:02:20.8]} 24... Nc6 {[%clk 0:00:45]} 25. f6 {[%clk 0:01:59.9]}
25... Bh6 {[%clk 0:00:37.9]} 26. h4 {[%clk 0:01:59.7]} 26... Nxd4 {[%clk
0:00:37.3]} 27. cxd4 {[%clk 0:01:55.9]} 27... Rc2 {[%clk 0:00:38.6]} 28. Bxg5
{[%clk 0:01:38.3]} 28... Bxg5 {[%clk 0:00:37.6]} 29. hxg5 {[%clk 0:01:40.2]}
29... Rxa2 {[%clk 0:00:37.4]} 30. Rc1 {[%clk 0:01:38.6]} 30... Rcc2 {[%clk
0:00:36.1]} 31. Bf3 {[%clk 0:01:34.7]} 31... b5 {[%clk 0:00:25.9]} 32. b4 {[%clk
0:01:32.7]} 32... Rc4 {[%clk 0:00:21.5]} 33. Ra1 {[%clk 0:01:19.7]} 33... Ra4
{[%clk 0:00:17.1]} 34. Rxa4 {[%clk 0:01:11.4]} 34... bxa4 {[%clk 0:00:17.9]} 35.
Be2 {[%clk 0:01:10.2]} 35... Rxd4 {[%clk 0:00:17.7]} 36. Bxa6 {[%clk 0:01:08.2]}
36... Rxg4+ {[%clk 0:00:18.3]} 37. Kf2 {[%clk 0:01:09.5]} 37... Rxg5 {[%clk
0:00:16.4]} 38. Rc1 {[%clk 0:01:04.6]} 38... Rxe5 {[%clk 0:00:11.6]} 39. Bd3
{[%clk 0:01:00.8]} 39... Kf8 {[%clk 0:00:06.9]} 40. Rc7 {[%clk 0:00:57.9]} 40...
Ke8 {[%clk 0:00:08.1]} 41. b5 {[%clk 0:00:58.9]} 41... Kd8 {[%clk 0:00:08.8]}
42. b6 {[%clk 0:00:59.6]} 42... Rh5 {[%clk 0:00:06.4]} 43. Ra7 {[%clk
0:00:58.9]} 43... Rh2+ {[%clk 0:00:06.1]} 44. Ke3 {[%clk 0:00:51.4]} 44... Rb2
{[%clk 0:00:05.8]} 45. b7 {[%clk 0:00:45.4]} 45... Kc7 {[%clk 0:00:05.7]} 46.
b8=Q+ {[%clk 0:00:45.8]} 46... Kxb8 {[%clk 0:00:06.6]} 47. Rxd7 {[%clk
0:00:47.6]} 47... a3 {[%clk 0:00:06.9]} 48. Rxf7 {[%clk 0:00:27.5]} 48... a2
{[%clk 0:00:07.9]} 49. Rf8+ {[%clk 0:00:25.9]} 49... Ka7 {[%clk 0:00:08.7]} 50.
f7 {[%clk 0:00:23.2]} 50... a1=Q {[%clk 0:00:09.2]} 51. Ra8+ {[%clk 0:00:23.9]}
51... Kxa8 {[%clk 0:00:10.5]} 52. f8=Q+ {[%clk 0:00:25.2]} 52... Rb8 {[%clk
0:00:11.2]} 53. Qd6 {[%clk 0:00:19.2]} 53... Qe1+ {[%clk 0:00:10.6]} 54. Kf3
{[%clk 0:00:18.3]} 54... Qd1+ {[%clk 0:00:08.1]} 55. Ke3 {[%clk 0:00:17.8]}
55... Qg1+ {[%clk 0:00:04.8]} 56. Kf3 {[%clk 0:00:17.3]} 56... Qh1+ {[%clk
0:00:05.1]} 57. Ke3 {[%clk 0:00:17.1]} 57... Qh3+ {[%clk 0:00:05.5]} 58. Kd2
{[%clk 0:00:16.4]} 58... Rb2+ {[%clk 0:00:05]} 59. Kc3 {[%clk 0:00:16.8]} 59...
Rb3+ {[%clk 0:00:05.5]} 60. Kxb3 {[%clk 0:00:17.4]} 60... Qxd3+ {[%clk
0:00:07.1]} 61. Ka4 {[%clk 0:00:17.1]} 61... Qc4+ {[%clk 0:00:06.8]} 62. Ka5
{[%clk 0:00:18.2]} 62... d4 {[%clk 0:00:05.5]} 63. Qf8+ {[%clk 0:00:05.9]} 63...
Kb7 {[%clk 0:00:05.8]} 64. Qe7+ {[%clk 0:00:07.1]} 64... Qc7+ {[%clk 0:00:06.5]}
65. Qxc7+ {[%clk 0:00:05.9]} 65... Kxc7 {[%clk 0:00:08.4]} 66. Kb4 {[%clk
0:00:07.6]} 66... e5 {[%clk 0:00:09.4]} 67. Kc4 {[%clk 0:00:09.5]} 67... Kd6
{[%clk 0:00:10.7]} 68. Kd3 {[%clk 0:00:11.4]} 68... Kd5 {[%clk 0:00:12.1]} 69.
Ke2 {[%clk 0:00:12.4]} 69... e4 {[%clk 0:00:14]} 70. Kf2 {[%clk 0:00:13.9]}
70... Kc4 {[%clk 0:00:15.7]} 71. Ke2 {[%clk 0:00:14.4]} 71... Kc3 {[%clk
0:00:17.6]} 72. Kf2 {[%clk 0:00:15.2]} 72... Kc2 {[%clk 0:00:18.7]} 73. Kg3
{[%clk 0:00:17.1]} 73... d3 {[%clk 0:00:20.2]} 0-1

[Event "*** Titled Tuesday Blitz"]
[Site "Chess.com"]
[Date "2018.06.05"]
[Round "6"]
[White "aqmarkin"]
[Black "UNDERTAKER2001"]
[Result "1/2-1/2"]
[WhiteElo "2210"]
[BlackElo "2349"]
[TimeControl "180+2"]
[EndTime "14:30:56 PDT"]
[Termination "Game drawn - insufficient material"]

1. e4 {[%clk 0:03:01.9]} 1... e6 {[%clk 0:03:00]} 2. d4 {[%clk 0:03:01.6]} 2...
d5 {[%clk 0:03:01.9]} 3. Nc3 {[%clk 0:03:03.1]} 3... Nf6 {[%clk 0:03:03]} 4. Bg5
{[%clk 0:03:03.4]} 4... Be7 {[%clk 0:03:03.2]} 5. e5 {[%clk 0:03:04.3]} 5...
Nfd7 {[%clk 0:03:04.7]} 6. h4 {[%clk 0:03:05.3]} 6... O-O {[%clk 0:03:05.7]} 7.
Nh3 {[%clk 0:03:05]} 7... h6 {[%clk 0:03:06.7]} 8. Bxe7 {[%clk 0:03:05.4]} 8...
Qxe7 {[%clk 0:03:08.6]} 9. Nf4 {[%clk 0:02:53.1]} 9... c5 {[%clk 0:02:41.9]} 10.
Bb5 {[%clk 0:02:38.8]} 10... cxd4 {[%clk 0:02:31]} 11. Qxd4 {[%clk 0:02:34.8]}
11... a6 {[%clk 0:02:30.9]} 12. Bxd7 {[%clk 0:02:34.2]} 12... Bxd7 {[%clk
0:02:32.4]} 13. Nd3 {[%clk 0:02:33]} 13... b5 {[%clk 0:02:24.4]} 14. O-O {[%clk
0:01:59.2]} 14... Nc6 {[%clk 0:02:20]} 15. Qg4 {[%clk 0:01:56]} 15... b4 {[%clk
0:02:10.5]} 16. Ne2 {[%clk 0:01:55.2]} 16... Rac8 {[%clk 0:02:09.7]} 17. Rac1
{[%clk 0:01:52.5]} 17... f6 {[%clk 0:02:06.9]} 18. f4 {[%clk 0:01:36.7]} 18...
f5 {[%clk 0:02:06.4]} 19. Qg3 {[%clk 0:01:32.9]} 19... Na5 {[%clk 0:02:04.3]}
20. Nd4 {[%clk 0:01:22]} 20... Nc4 {[%clk 0:02:00.6]} 21. Qf2 {[%clk 0:01:17.4]}
21... Bb5 {[%clk 0:01:55.9]} 22. Rfd1 {[%clk 0:01:13.8]} 22... Rc7 {[%clk
0:01:53.8]} 23. g3 {[%clk 0:01:13.1]} 23... Rfc8 {[%clk 0:01:54.4]} 24. Qe1
{[%clk 0:00:58.9]} 24... Qf7 {[%clk 0:01:23.4]} 25. b3 {[%clk 0:00:36.7]} 25...
Na3 {[%clk 0:01:22.6]} 26. Nxb4 {[%clk 0:00:33.5]} 26... Rc3 {[%clk 0:01:17]}
27. Qf2 {[%clk 0:00:27.8]} 27... Qg6 {[%clk 0:01:07]} 28. Kh2 {[%clk 0:00:21.5]}
28... a5 {[%clk 0:01:06.7]} 29. Nxb5 {[%clk 0:00:22.1]} 29... Nxb5 {[%clk
0:01:05.8]} 30. Nd3 {[%clk 0:00:23.1]} 30... Na3 {[%clk 0:01:05]} 31. Rd2 {[%clk
0:00:21.6]} 31... Qg4 {[%clk 0:00:58.1]} 32. Ne1 {[%clk 0:00:21.5]} 32... g5
{[%clk 0:00:53.9]} 33. hxg5 {[%clk 0:00:20.1]} 33... hxg5 {[%clk 0:00:55.1]} 34.
Rd3 {[%clk 0:00:21.5]} 34... gxf4 {[%clk 0:00:49.8]} 35. Qxf4 {[%clk 0:00:19.4]}
35... Qe2+ {[%clk 0:00:40.3]} 36. Kg1 {[%clk 0:00:19.5]} 36... Kf7 {[%clk
0:00:29.5]} 37. Qg5 {[%clk 0:00:18.4]} 37... Rxd3 {[%clk 0:00:15.1]} 38. Qf6+
{[%clk 0:00:17.9]} 38... Ke8 {[%clk 0:00:15.9]} 39. Qxe6+ {[%clk 0:00:16.9]}
39... Kd8 {[%clk 0:00:17.4]} 40. Qd6+ {[%clk 0:00:18.1]} 40... Ke8 {[%clk
0:00:17.8]} 41. Qe6+ {[%clk 0:00:19]} 41... Kd8 {[%clk 0:00:18.5]} 42. Qf6+
{[%clk 0:00:20.1]} 42... Kc7 {[%clk 0:00:18.2]} 43. cxd3+ {[%clk 0:00:20.7]}
43... Nc4 {[%clk 0:00:15.6]} 44. Qe7+ {[%clk 0:00:11.4]} 44... Kb6 {[%clk
0:00:15.5]} 45. Qg5 {[%clk 0:00:07.2]} 45... Rg8 {[%clk 0:00:10.1]} 46. Qxg8
{[%clk 0:00:03.6]} 46... Qe3+ {[%clk 0:00:11.1]} 47. Kg2 {[%clk 0:00:05]} 47...
Qd2+ {[%clk 0:00:12.2]} 48. Kh3 {[%clk 0:00:05.6]} 48... Qh6+ {[%clk 0:00:13.7]}
49. Kg2 {[%clk 0:00:06.3]} 49... Qd2+ {[%clk 0:00:14.8]} 50. Kh3 {[%clk
0:00:07.4]} 50... Qxc1 {[%clk 0:00:16.1]} 51. Qe6+ {[%clk 0:00:04.1]} 51... Kb5
{[%clk 0:00:16]} 52. Nf3 {[%clk 0:00:02.9]} 52... Qh1+ {[%clk 0:00:16.3]} 53.
Nh2 {[%clk 0:00:03.3]} 53... Ne3 {[%clk 0:00:17.8]} 54. Qd7+ {[%clk 0:00:03.6]}
54... Kb4 {[%clk 0:00:19.1]} 55. Qb7+ {[%clk 0:00:04.6]} 55... Kc3 {[%clk
0:00:20.4]} 56. Qc7+ {[%clk 0:00:05.7]} 56... Kd2 {[%clk 0:00:21.6]} 57. Qxa5+
{[%clk 0:00:06.8]} 57... Ke2 {[%clk 0:00:21.8]} 58. Qc3 {[%clk 0:00:07.6]} 58...
Qg2+ {[%clk 0:00:22.5]} 59. Kh4 {[%clk 0:00:09.1]} 59... Qxh2+ {[%clk
0:00:23.8]} 60. Kg5 {[%clk 0:00:11]} 60... Qxg3+ {[%clk 0:00:25.2]} 61. Kf6
{[%clk 0:00:12.2]} 61... Qh4+ {[%clk 0:00:25.7]} 62. Kf7 {[%clk 0:00:12]} 62...
Qh7+ {[%clk 0:00:26.1]} 63. Kf6 {[%clk 0:00:12.9]} 63... Ng4+ {[%clk 0:00:27]}
64. Kg5 {[%clk 0:00:13.1]} 64... Qg7+ {[%clk 0:00:27.6]} 65. Kxf5 {[%clk
0:00:13.3]} 65... Ne3+ {[%clk 0:00:28]} 66. Ke6 {[%clk 0:00:14.6]} 66... Qg8+
{[%clk 0:00:28.1]} 67. Kd6 {[%clk 0:00:15.5]} 67... Qd8+ {[%clk 0:00:28.1]} 68.
Ke6 {[%clk 0:00:15.9]} 68... Qe8+ {[%clk 0:00:28.4]} 69. Kd6 {[%clk 0:00:17.3]}
69... Kf3 {[%clk 0:00:28.3]} 70. e6 {[%clk 0:00:17.2]} 70... Nf5+ {[%clk
0:00:28.1]} 71. Kxd5 {[%clk 0:00:18.6]} 71... Qd8+ {[%clk 0:00:28.8]} 72. Kc4
{[%clk 0:00:20]} 72... Qc7+ {[%clk 0:00:28]} 73. Kb4 {[%clk 0:00:21.2]} 73...
Qb6+ {[%clk 0:00:29.3]} 74. Ka3 {[%clk 0:00:22.2]} 74... Qxe6 {[%clk 0:00:30.8]}
75. d4+ {[%clk 0:00:22.3]} 75... Ke4 {[%clk 0:00:31.9]} 76. Qe1+ {[%clk
0:00:22.8]} 76... Kd5 {[%clk 0:00:33]} 77. Qxe6+ {[%clk 0:00:23.9]} 77... Kxe6
{[%clk 0:00:34.3]} 78. Kb4 {[%clk 0:00:25.8]} 78... Nxd4 {[%clk 0:00:35.5]} 79.
a4 {[%clk 0:00:27.7]} 79... Nc6+ {[%clk 0:00:36.4]} 80. Kb5 {[%clk 0:00:28.8]}
80... Kd7 {[%clk 0:00:37.9]} 81. a5 {[%clk 0:00:29]} 81... Kc7 {[%clk
0:00:38.5]} 82. a6 {[%clk 0:00:29.9]} 82... Nd4+ {[%clk 0:00:39.4]} 83. Kc4
{[%clk 0:00:30.5]} 83... Nxb3 {[%clk 0:00:40.5]} 84. Kxb3 {[%clk 0:00:32.4]}
84... Kb6 {[%clk 0:00:41.9]} 85. a7 {[%clk 0:00:33.4]} 85... Kxa7 {[%clk
0:00:43.3]} 1/2-1/2

[Event "*** Titled Tuesday Blitz"]
[Site "Chess.com"]
[Date "2018.06.05"]
[Round "6"]
[White "Robert_Chessmood"]
[Black "BartoszSocko"]
[Result "0-1"]
[WhiteElo "2720"]
[BlackElo "2633"]
[TimeControl "180+2"]
[EndTime "14:31:06 PDT"]
[Termination "BartoszSocko won by resignation"]

1. e4 {[%clk 0:03:01.9]} 1... e6 {[%clk 0:03:01.1]} 2. d4 {[%clk 0:03:02.4]}
2... d5 {[%clk 0:03:02.6]} 3. Nc3 {[%clk 0:03:03.9]} 3... Bb4 {[%clk 0:03:03.1]}
4. exd5 {[%clk 0:03:03.7]} 4... exd5 {[%clk 0:03:04]} 5. Bd3 {[%clk 0:03:05.2]}
5... Nc6 {[%clk 0:03:04.6]} 6. Nf3 {[%clk 0:03:06.1]} 6... Be6 {[%clk
0:03:04.1]} 7. O-O {[%clk 0:03:02.2]} 7... Qd7 {[%clk 0:03:02.1]} 8. Ne2 {[%clk
0:02:40]} 8... Nge7 {[%clk 0:02:59.6]} 9. c3 {[%clk 0:02:39.3]} 9... Bd6 {[%clk
0:03:00.2]} 10. Bf4 {[%clk 0:02:33.7]} 10... O-O-O {[%clk 0:03:00.1]} 11. b4
{[%clk 0:02:29.1]} 11... Bg4 {[%clk 0:03:00.9]} 12. Ne5 {[%clk 0:02:26.6]} 12...
Bxe5 {[%clk 0:03:00.3]} 13. dxe5 {[%clk 0:02:27.3]} 13... Ng6 {[%clk 0:02:56.5]}
14. f3 {[%clk 0:02:01.1]} 14... Bf5 {[%clk 0:02:46.7]} 15. Bb5 {[%clk
0:01:53.7]} 15... Nxf4 {[%clk 0:02:27.2]} 16. Nxf4 {[%clk 0:01:52.9]} 16... a6
{[%clk 0:02:28.6]} 17. Bxc6 {[%clk 0:01:46.3]} 17... Qxc6 {[%clk 0:02:30.5]} 18.
Qd4 {[%clk 0:01:44.5]} 18... Rhe8 {[%clk 0:02:28.1]} 19. a4 {[%clk 0:01:41.8]}
19... g5 {[%clk 0:02:16.1]} 20. Nh5 {[%clk 0:01:27.1]} 20... Re7 {[%clk
0:01:57.9]} 21. Nf6 {[%clk 0:01:14.5]} 21... h6 {[%clk 0:01:07.5]} 22. Qa7
{[%clk 0:01:07.8]} 22... b6 {[%clk 0:00:59.7]} 23. Qxa6+ {[%clk 0:01:01.5]}
23... Kb8 {[%clk 0:01:00.8]} 24. a5 {[%clk 0:00:54.8]} 24... Rxe5 {[%clk
0:00:59.8]} 25. axb6 {[%clk 0:00:31.4]} 25... Qxb6+ {[%clk 0:01:01.7]} 26. Qxb6+
{[%clk 0:00:32.5]} 26... cxb6 {[%clk 0:01:03.6]} 27. Ra6 {[%clk 0:00:34.1]}
27... Bd3 {[%clk 0:00:46.1]} 28. Rxb6+ {[%clk 0:00:16.2]} 28... Kc7 {[%clk
0:00:46]} 29. Rd1 {[%clk 0:00:16.7]} 29... Be2 {[%clk 0:00:24.4]} 30. Nxd5+
{[%clk 0:00:11.1]} 30... Rexd5 {[%clk 0:00:25.6]} 31. Rxd5 {[%clk 0:00:13]}
31... Rxd5 {[%clk 0:00:27.1]} 32. Rxh6 {[%clk 0:00:14.5]} 32... Bd3 {[%clk
0:00:23.2]} 33. h4 {[%clk 0:00:10]} 33... gxh4 {[%clk 0:00:22.4]} 34. Rxh4
{[%clk 0:00:11.9]} 34... Bg6 {[%clk 0:00:20.7]} 35. c4 {[%clk 0:00:08]} 35...
Rd2 {[%clk 0:00:21.8]} 36. Rf4 {[%clk 0:00:05.2]} 36... Rb2 {[%clk 0:00:21.7]}
37. c5 {[%clk 0:00:05.3]} 37... Kc6 {[%clk 0:00:22.7]} 38. Kh2 {[%clk
0:00:05.4]} 38... Kb5 {[%clk 0:00:23.8]} 39. Kh3 {[%clk 0:00:05.3]} 39... Rd2
{[%clk 0:00:22.1]} 40. g4 {[%clk 0:00:05.1]} 40... Rd7 {[%clk 0:00:16.9]} 41.
Kh4 {[%clk 0:00:05.4]} 41... Bd3 {[%clk 0:00:17]} 42. Kg5 {[%clk 0:00:05.6]}
42... Bc4 {[%clk 0:00:17.8]} 43. Re4 {[%clk 0:00:05.9]} 43... Kxb4 {[%clk
0:00:17.9]} 44. c6 {[%clk 0:00:07.2]} 44... Rc7 {[%clk 0:00:19.4]} 45. f4 {[%clk
0:00:07.7]} 45... Rxc6 {[%clk 0:00:20.5]} 46. f5 {[%clk 0:00:08.8]} 46... Kc5
{[%clk 0:00:18.9]} 47. Kf4 {[%clk 0:00:10]} 47... Bd5 {[%clk 0:00:18.4]} 48. Re1
{[%clk 0:00:10]} 48... Rb6 {[%clk 0:00:16]} 49. g5 {[%clk 0:00:09.4]} 49... Kd6
{[%clk 0:00:15.6]} 50. g6 {[%clk 0:00:10]} 50... f6 {[%clk 0:00:16.9]} 51. Re8
{[%clk 0:00:08.5]} 51... Rb4+ {[%clk 0:00:18]} 52. Kg3 {[%clk 0:00:09.3]} 52...
Rb3+ {[%clk 0:00:14.4]} 53. Kg4 {[%clk 0:00:09.5]} 53... Rb4+ {[%clk 0:00:13.2]}
54. Kh5 {[%clk 0:00:07.2]} 54... Rf4 {[%clk 0:00:13.1]} 55. Kh6 {[%clk
0:00:04.7]} 55... Rxf5 {[%clk 0:00:13.6]} 56. Rd8+ {[%clk 0:00:04.1]} 56... Ke5
{[%clk 0:00:13.4]} 57. g7 {[%clk 0:00:04.4]} 57... Rg5 {[%clk 0:00:14.2]} 58.
Re8+ {[%clk 0:00:03.7]} 58... Kf5 {[%clk 0:00:12.4]} 59. Rd8 {[%clk 0:00:04.8]}
59... Bf7 {[%clk 0:00:11.5]} 60. g8=Q {[%clk 0:00:03.7]} 60... Rxg8 {[%clk
0:00:10.2]} 61. Rd7 {[%clk 0:00:04.7]} 61... Be6 {[%clk 0:00:08.1]} 62. Rd1
{[%clk 0:00:06.2]} 62... Rg4 {[%clk 0:00:08.9]} 63. Rf1+ {[%clk 0:00:06.4]}
63... Rf4 {[%clk 0:00:09.9]} 64. Ra1 {[%clk 0:00:06.9]} 64... Ke5 {[%clk
0:00:10.9]} 65. Kg6 {[%clk 0:00:07.5]} 65... Rg4+ {[%clk 0:00:12.3]} 66. Kh5
{[%clk 0:00:08.8]} 66... f5 {[%clk 0:00:13.5]} 67. Ra8 {[%clk 0:00:08.2]} 67...
Rg1 {[%clk 0:00:13.2]} 68. Ra5+ {[%clk 0:00:06.9]} 68... Bd5 {[%clk 0:00:14.4]}
69. Kh4 {[%clk 0:00:05.2]} 69... f4 {[%clk 0:00:15.6]} 70. Kh3 {[%clk
0:00:06.6]} 70... f3 {[%clk 0:00:13.7]} 71. Kh2 {[%clk 0:00:07.7]} 71... f2
{[%clk 0:00:13.2]} 72. Ra4 {[%clk 0:00:06.9]} 72... Rg2+ {[%clk 0:00:10.7]} 73.
Kh3 {[%clk 0:00:07.3]} 73... f1=Q {[%clk 0:00:10]} 0-1